bitfinex-derivatives/quotes_BTCF0:USTF0_20251202
["timestamp","ask_amount","ask_price","bid_price","bid_amount"]
[1764634627606,9.361e-05,86374.0,86368.0,0.0115791]
[1764634627807,3.61e-06,86374.0,86373.0,0.1984084]
[1764634627998,0.0115764,86389.0,86388.0,0.18683]
[1764634628403,0.5969464,86389.0,86388.0,0.18683]
[1764634628791,0.7569464,86389.0,86388.0,0.18683]
[1764634629411,0.1969474,86381.0,86380.0,0.09234359]
[1764634629712,0.4645274,86381.0,86380.0,0.18700359]
[1764634629907,0.1037274,86381.0,86380.0,0.18700359]
[1764634630106,0.1969474,86381.0,86380.0,0.18700359]
[1764634630304,0.6169474,86381.0,86380.0,0.00017359]
[1764634630608,0.3669474,86381.0,86380.0,0.18700359]
[1764634630809,0.2737274,86381.0,86380.0,0.18700359]
[1764634631402,0.3669474,86381.0,86380.0,0.18700359]
[1764634631602,0.5969474,86381.0,86380.0,0.18700359]
[1764634632607,0.18537,86381.0,86380.0,0.18700359]
[1764634632813,0.1037269,86385.0,86384.0,0.24482]
[1764634633001,0.14,86385.0,86384.0,0.24482]
[1764634633800,0.1037256,86395.0,86392.0,0.05799]
[1764634634007,0.1037256,86395.0,86394.0,0.18683]
[1764634634008,0.16,86395.0,86394.0,0.18683]
[1764634634202,0.36097359,86397.0,86396.0,0.18683]
[1764634634518,0.50097359,86397.0,86396.0,0.18683]
[1764634635104,0.14017359,86397.0,86396.0,0.18683]
[1764634635898,0.32554359,86397.0,86396.0,0.18683]
[1764634636105,0.18537,86394.0,86393.0,0.3608]
[1764634636300,0.33537,86394.0,86393.0,0.45297]
[1764634636502,0.33537,86394.0,86393.0,0.54763]
[1764634637109,0.33537,86394.0,86393.0,0.18683]
[1764634638218,0.73537,86394.0,86393.0,0.09217]
[1764634638917,0.73537,86394.0,86393.0,0.18683]
[1764634641820,0.1969465,86388.0,86387.0,0.18683]
[1764634642027,0.103726,86392.0,86386.0,0.3608]
[1764634642212,0.463726,86392.0,86391.0,0.18683]
[1764634642413,0.151576,86392.0,86391.0,0.18683]
[1764634642608,0.14,86392.0,86391.0,0.34683]
[1764634642813,0.00017359,86397.0,86396.0,0.18683]
[1764634643018,0.3723732,86413.0,86412.0,0.18683]
[1764634643217,0.5008,86413.0,86412.0,0.18683]
[1764634643419,0.6977431,86413.0,86412.0,0.18683]
[1764634643610,0.6977431,86413.0,86403.0,0.54763]
[1764634643611,0.18537,86404.0,86403.0,0.54763]
[1764634643813,0.50953933,86413.0,86412.0,0.18683]
[1764634644113,1.05953933,86413.0,86412.0,0.18683]
[1764634644311,0.7469431,86413.0,86412.0,0.18683]
[1764634646812,0.43537,86413.0,86412.0,0.18683]
[1764634647321,0.74537,86413.0,86412.0,0.18683]
[1764634647822,0.18537,86405.0,86404.0,0.18700359]
[1764634648018,0.34537,86405.0,86404.0,0.18700359]
[1764634648322,0.16,86405.0,86404.0,0.18700359]
[1764634648521,0.16,86405.0,86404.0,0.19882225]
[1764634651324,0.37509,86405.0,86404.0,0.19882225]
[1764634651525,0.26336,86405.0,86404.0,0.19882225]
[1764634652629,0.16,86405.0,86404.0,0.19882225]
[1764634652829,0.56670359,86421.0,86420.0,0.20571]
[1764634653028,0.72670359,86421.0,86420.0,0.20571]
[1764634653620,0.63603559,86421.0,86420.0,0.20571]
[1764634653825,0.53254559,86421.0,86420.0,0.20571]
[1764634654022,0.16017359,86421.0,86420.0,0.20571]
[1764634654224,0.01017359,86421.0,86420.0,0.61571]
[1764634654427,0.00017359,86421.0,86420.0,0.97651]
[1764634654733,0.3608,86430.0,86428.0,0.20571]
[1764634654734,0.0115709,86429.0,86428.0,0.20571]
[1764634654929,0.2650609,86429.0,86428.0,0.20571]
[1764634658220,0.3673009,86429.0,86428.0,0.10476]
[1764634658435,0.3673009,86429.0,86420.0,0.46556]
[1764634658436,0.217302,86421.0,86420.0,0.46556]
[1764634658629,0.357302,86421.0,86420.0,0.46556]
[1764634659425,0.357302,86421.0,86420.0,0.56651]
[1764634660322,0.2173024,86418.0,86417.0,0.1197]
[1764634660531,0.3573024,86418.0,86417.0,0.1197]
[1764634661736,0.2173032,86412.0,86404.0,0.01199225]
[1764634661922,0.3673032,86412.0,86404.0,0.01199225]
[1764634662633,0.2173042,86405.0,86404.0,0.20588359]
[1764634663823,0.7273042,86405.0,86404.0,0.10493359]
[1764634665822,0.7273042,86405.0,86404.0,0.20588359]
[1764634666020,0.35573,86405.0,86404.0,0.20588359]
[1764634666220,0.10366359,86413.0,86412.0,0.20571]
[1764634666421,0.35590359,86413.0,86412.0,0.20571]
[1764634666627,0.2173042,86405.0,86404.0,0.10493359]
[1764634666826,0.3773042,86405.0,86404.0,0.10493359]
[1764634667026,0.3773042,86405.0,86404.0,0.20588359]
[1764634670138,0.3773042,86405.0,86404.0,0.00017359]
[1764634670727,0.3773042,86405.0,86404.0,0.20588359]
[1764634674142,0.7273042,86405.0,86404.0,0.00017359]
[1764634674434,0.2173051,86398.0,86397.0,0.3608]
[1764634674623,0.2173051,86398.0,86387.0,0.46556]
[1764634674624,0.2173064,86388.0,86387.0,0.46556]
[1764634675023,0.2173064,86388.0,86387.0,0.56651]
[1764634675436,0.2173064,86388.0,86387.0,0.57793696]
[1764634676030,0.46429,86402.0,86401.0,0.20571]
[1764634676337,0.7181046,86402.0,86401.0,0.20571]
[1764634676636,1.0981046,86402.0,86401.0,0.10476]
[1764634676830,0.7181046,86402.0,86401.0,0.20571]
[1764634678040,0.7181046,86402.0,86392.0,0.06572]
[1764634678041,0.1150658,86393.0,86392.0,0.27143]
[1764634678337,0.2173058,86393.0,86392.0,0.28143]
[1764634678539,0.2173058,86393.0,86392.0,0.21571]
[1764634678841,0.2173058,86393.0,86392.0,0.28143]
[1764634679140,0.2173058,86393.0,86392.0,0.27143]
[1764634679327,0.2173058,86393.0,86392.0,0.10476]
[1764634679539,0.2173058,86393.0,86392.0,0.20571]
[1764634680042,0.2173058,86393.0,86392.0,0.27143]
[1764634680243,0.0115764,86388.0,86381.0,0.1197]
[1764634680434,0.2173064,86388.0,86387.0,0.56651]
[1764634681243,0.3723746,86402.0,86391.0,0.20571]
[1764634681244,0.011576,86392.0,86391.0,0.20571]
[1764634681445,0.357306,86392.0,86391.0,0.20571]
[1764634683838,0.14,86392.0,86391.0,0.20571]
[1764634684648,0.14,86392.0,86387.0,0.3608]
[1764634684649,0.19516,86388.0,86387.0,0.3608]
[1764634684842,0.40452281,86388.0,86387.0,0.5672245]
[1764634685145,0.0315764,86388.0,86387.0,0.5672245]
[1764634685533,0.0220174,86381.0,86380.0,0.26054]
[1764634685738,0.1620174,86381.0,86380.0,0.26054]
[1764634686536,0.1620174,86381.0,86376.0,0.06572]
[1764634686537,0.01044,86380.0,86376.0,0.06572]
[1764634686737,0.53044,86380.0,86369.0,0.3608]
[1764634687153,0.53044,86380.0,86379.0,0.19499359]
[1764634688060,0.25,86380.0,86379.0,0.19499359]
[1764634688651,0.13,86380.0,86379.0,0.19499359]
[1764634688852,0.0115767,86387.0,86386.0,0.19482]
[1764634689053,0.1515767,86387.0,86386.0,0.19482]
[1764634690057,0.35485089,86391.0,86390.0,0.19482]
[1764634690258,0.92485089,86391.0,86390.0,0.19482]
[1764634693158,0.50441089,86391.0,86390.0,0.19482]
[1764634693357,0.00017359,86393.0,86392.0,0.2527]
[1764634693561,0.0115736,86409.0,86408.0,0.2527]
[1764634693761,0.1569736,86409.0,86408.0,0.2527]
[1764634694253,0.1623736,86409.0,86408.0,0.2527]
[1764634697365,0.5823736,86409.0,86408.0,0.2527]
[1764634697961,0.1623736,86409.0,86408.0,0.2527]
[1764634698161,0.1515736,86409.0,86408.0,0.2527]
[1764634698364,0.1569736,86409.0,86408.0,0.2527]
[1764634698565,0.1623736,86409.0,86408.0,0.2527]
[1764634700161,0.5723736,86409.0,86408.0,0.2527]
[1764634701175,0.1515736,86409.0,86408.0,0.2527]
[1764634701356,0.14,86409.0,86408.0,0.2527]
[1764634701870,0.3608,86415.0,86414.0,0.19482]
[1764634702171,0.5108,86415.0,86414.0,0.19482]
[1764634702569,0.00017359,86417.0,86416.0,0.2527]
[1764634702767,0.14017359,86417.0,86416.0,0.2527]
[1764634703273,0.15174619,86417.0,86416.0,0.2527]
[1764634703871,0.34690619,86417.0,86416.0,0.2527]
[1764634706369,0.33533359,86417.0,86416.0,0.2527]
[1764634706777,0.14017359,86417.0,86416.0,0.2527]
[1764634707674,0.14017359,86417.0,86416.0,0.9735]
[1764634708074,0.00017359,86417.0,86416.0,0.9735]
[1764634708375,0.13017359,86417.0,86416.0,0.9735]
[1764634709679,0.13017359,86417.0,86416.0,0.6135]
[1764634710471,0.00017359,86417.0,86416.0,0.6135]
[1764634710672,0.15017359,86417.0,86416.0,0.6135]
[1764634712183,0.26085359,86417.0,86416.0,0.6135]
[1764634712486,0.37196359,86417.0,86416.0,0.6135]
[1764634712888,0.15017359,86417.0,86416.0,0.6135]
[1764634713080,0.0115702,86435.0,86432.0,0.06909]
[1764634713380,0.6028689,86444.0,86443.0,0.23332]
[1764634713591,1.1428689,86444.0,86443.0,0.23332]
[1764634716387,0.7828689,86444.0,86443.0,0.23332]
[1764634717275,0.4220689,86444.0,86443.0,0.23332]
[1764634717475,0.14,86444.0,86443.0,0.23332]
[1764634720389,0.2305,86436.0,86435.0,0.00017359]
[1764634720595,0.75207,86436.0,86435.0,0.00017359]
[1764634721683,0.50207,86436.0,86435.0,0.00017359]
[1764634721882,0.50207,86436.0,86400.0,0.06909]
[1764634721883,0.242073,86414.0,86400.0,0.06909]
[1764634722188,0.3705,86414.0,86413.0,0.59412]
[1764634722385,0.3705,86414.0,86413.0,0.60547313]
[1764634723191,0.14,86414.0,86413.0,0.60547313]
[1764634723896,0.3705,86414.0,86413.0,0.60547313]
[1764634724190,0.25617,86414.0,86413.0,0.59412]
[1764634724390,0.25617,86414.0,86413.0,0.60593361]
[1764634726301,0.3705,86414.0,86413.0,0.60593361]
[1764634726500,0.3705,86414.0,86413.0,0.47858]
[1764634726685,0.3705,86414.0,86413.0,0.3608]
[1764634726889,0.3705,86414.0,86413.0,0.47858]
[1764634727203,0.3705,86414.0,86413.0,0.59412]
[1764634732496,0.14,86414.0,86413.0,0.59412]
[1764634733101,0.3705,86414.0,86413.0,0.59412]
[1764634734106,0.22064203,86414.0,86413.0,0.59412]
[1764634734405,0.36064203,86414.0,86413.0,0.59412]
[1764634738099,0.76064203,86414.0,86413.0,0.3608]
[1764634738293,0.2305,86406.0,86405.0,0.00017359]
[1764634738499,0.8105,86406.0,86405.0,0.00017359]
[1764634739504,0.4305,86406.0,86405.0,0.23349359]
[1764634739706,0.3805,86406.0,86405.0,0.23349359]
[1764634740602,0.15,86406.0,86405.0,0.23349359]
[1764634741307,0.2305,86416.0,86415.0,0.23332]
[1764634741512,0.27617,86416.0,86415.0,0.59412]
[1764634742409,0.00017359,86422.0,86421.0,0.2579]
[1764634742607,0.00017359,86422.0,86421.0,0.6479]
[1764634743597,0.00017359,86422.0,86421.0,0.6979]
[1764634743797,0.3608,86445.0,86421.0,0.6979]
[1764634743798,0.011569,86444.0,86440.0,0.07428]
[1764634744010,0.15,86444.0,86443.0,0.2579]
[1764634744312,0.0115684,86448.0,86447.0,0.2579]
[1764634744505,0.1715684,86448.0,86447.0,0.2579]
[1764634744702,0.1515684,86448.0,86447.0,0.2579]
[1764634745998,0.0115684,86448.0,86447.0,0.2579]
[1764634746412,0.1715684,86448.0,86447.0,0.2579]
[1764634747203,0.372368,86452.0,86447.0,0.2579]
[1764634747409,0.25801359,86456.0,86455.0,0.2579]
[1764634747604,0.00017359,86456.0,86455.0,0.6179]
[1764634748817,0.144255,86474.0,86473.0,0.2579]
[1764634749116,0.284255,86474.0,86473.0,0.2579]
[1764634749305,0.409405,86474.0,86473.0,0.2579]
[1764634751119,0.269406,86466.0,86465.0,0.12826348]
[1764634751307,0.429406,86466.0,86465.0,0.25807348]
[1764634752014,0.809406,86466.0,86465.0,0.00017348]
[1764634752914,0.809406,86466.0,86465.0,0.12826348]
[1764634753622,1.170206,86466.0,86465.0,8e-08]
[1764634753914,1.170206,86466.0,86435.0,0.3608]
[1764634753915,0.25784,86436.0,86435.0,0.6187]
[1764634754110,0.41784,86436.0,86435.0,0.6187]
[1764634754305,0.25784,86436.0,86435.0,0.6187]
[1764634754718,0.41784,86436.0,86435.0,0.6187]
[1764634755108,0.25784,86436.0,86435.0,0.6217]
[1764634755515,0.39784,86436.0,86435.0,0.6217]
[1764634755708,0.39784,86436.0,86435.0,0.6207]
[1764634756110,0.39784,86436.0,86435.0,0.6187]
[1764634757017,0.13269,86443.0,86436.0,0.07428]
[1764634757213,0.2942591,86443.0,86442.0,0.2579]
[1764634757406,0.4194091,86443.0,86442.0,0.2579]
[1764634757610,0.26941,86436.0,86435.0,0.6187]
[1764634757819,0.42941,86436.0,86435.0,0.6187]
[1764634759021,0.85717,86436.0,86435.0,0.3608]
[1764634759417,0.70717,86436.0,86435.0,0.3608]
[1764634759617,0.50717,86436.0,86435.0,0.3608]
[1764634760814,0.26941,86436.0,86435.0,0.6187]
[1764634761006,0.41941,86436.0,86435.0,0.6187]
[1764634764028,0.40941,86436.0,86435.0,0.6187]
[1764634764721,0.39784,86436.0,86435.0,0.6187]
[1764634764921,0.26958238,86444.0,86443.0,0.2579]
[1764634765112,0.25784,86436.0,86435.0,0.6187]
[1764634765314,0.4856,86436.0,86435.0,0.6187]
[1764634767120,0.8356,86436.0,86435.0,0.3608]
[1764634769416,0.2694111,86428.0,86427.0,0.12826348]
[1764634769714,0.7794111,86428.0,86427.0,0.00017348]
[1764634771820,0.4594111,86428.0,86427.0,0.22516348]
[1764634772021,0.4594111,86428.0,86427.0,0.11359348]
[1764634772022,0.6994111,86428.0,86427.0,0.11359348]
[1764634772224,0.6994111,86428.0,86427.0,0.00017348]
[1764634781026,0.6994111,86428.0,86411.0,0.59158]
[1764634781027,0.0115732,86412.0,86411.0,0.59158]
[1764634781226,0.3663732,86412.0,86411.0,0.59158]
[1764634782537,0.7663732,86412.0,86411.0,0.59158]
[1764634782732,0.0115742,86405.0,86404.0,0.07357828]
[1764634782940,0.2363742,86405.0,86404.0,0.23078]
[1764634783128,0.2248,86404.0,86403.0,0.00017359]
[1764634783323,0.7348,86404.0,86403.0,0.00017359]
[1764634784740,0.3648,86404.0,86403.0,0.00017359]
[1764634786929,0.2363754,86396.0,86395.0,0.00014161]
[1764634787127,0.9040154,86396.0,86395.0,0.00014161]
[1764634788353,0.2363764,86388.0,86387.0,0.00017359]
[1764634788543,0.11519,86369.0,86368.0,0.59158]
[1764634788736,0.2248,86369.0,86368.0,0.59158]
[1764634789232,0.22494078,86369.0,86368.0,0.60310749]
[1764634791044,0.22494078,86369.0,86368.0,0.24230749]
[1764634791240,0.2248,86361.0,86360.0,0.23095359]
[1764634791548,0.3763801,86361.0,86360.0,0.23095359]
[1764634792236,0.3763801,86361.0,86360.0,0.00017359]
[1764634792542,0.3763801,86361.0,86360.0,0.11460359]
[1764634792744,0.3763801,86361.0,86360.0,0.23195359]
[1764634793329,0.3648,86361.0,86360.0,0.23195359]
[1764634793644,0.24961,86361.0,86360.0,0.29843359]
[1764634794148,0.3648,86361.0,86360.0,0.29843359]
[1764634794443,0.14,86361.0,86360.0,0.29843359]
[1764634796845,0.4897968,86364.0,86363.0,0.23078]
[1764634797145,0.6497968,86364.0,86363.0,0.23078]
[1764634797347,0.7594068,86364.0,86363.0,0.23078]
[1764634797546,0.8745968,86364.0,86363.0,0.23078]
[1764634799446,0.7594068,86364.0,86363.0,0.23078]
[1764634799842,0.2811897,86364.0,86363.0,0.23078]
[1764634800052,0.3963797,86364.0,86363.0,0.23078]
[1764634800247,0.16,86364.0,86363.0,0.23078]
[1764634801142,0.3848,86364.0,86363.0,0.23078]
[1764634801748,0.2248,86361.0,86360.0,0.23095359]
[1764634801935,0.3648,86361.0,86360.0,0.23095359]
[1764634803950,0.3648,86361.0,86360.0,0.23195359]
[1764634804752,0.3648,86361.0,86360.0,0.00117359]
[1764634806952,0.3648,86361.0,86360.0,0.00017359]
[1764634807959,0.3648,86361.0,86360.0,0.11480359]
[1764634808153,0.3648,86361.0,86360.0,0.00017359]
[1764634814265,0.38990317,86361.0,86360.0,0.00017359]
[1764634815959,0.38990317,86361.0,86360.0,0.22363359]
[1764634816360,0.92790317,86361.0,86360.0,0.22363359]
[1764634816865,0.92790317,86361.0,86360.0,0.11480359]
[1764634817170,0.92790317,86361.0,86360.0,0.00017359]
[1764634818451,0.2373518,86348.0,86347.0,0.11463]
[1764634818668,0.37749419,86348.0,86347.0,0.11463]
[1764634819170,0.37749419,86348.0,86347.0,0.22346]
[1764634819468,0.37749419,86348.0,86347.0,0.23526632]
[1764634820468,0.37749419,86348.0,86347.0,0.12643632]
[1764634820858,0.37749419,86348.0,86347.0,0.01180632]
[1764634821068,0.22577,86342.0,86341.0,0.58426]
[1764634822468,0.22577,86342.0,86341.0,0.59676264]
[1764634822765,0.22577,86342.0,86341.0,0.59776264]
[1764634830068,0.38577,86342.0,86341.0,0.3628]
[1764634830260,0.38577,86342.0,86341.0,0.11042]
[1764634830663,0.16,86342.0,86341.0,0.22657273]
[1764634831063,0.36655,86342.0,86341.0,0.22657273]
[1764634831459,0.36655,86342.0,86341.0,0.21399]
[1764634831666,0.36655,86342.0,86341.0,0.21299]
[1764634833073,0.36655,86342.0,86341.0,0.22474128]
[1764634837575,0.27357,86340.0,86339.0,0.00017369]
[1764634837768,0.41357,86340.0,86339.0,0.00017369]
[1764634838081,0.43881337,86340.0,86339.0,0.00017369]
[1764634839182,0.43881337,86340.0,86339.0,0.10838369]
[1764634839582,0.43881337,86340.0,86339.0,0.00017369]
[1764634840378,0.95165,86340.0,86339.0,0.10838369]
[1764634840577,0.95165,86340.0,86339.0,0.00017369]
[1764634841874,0.70801435,86340.0,86339.0,0.00017369]
[1764634842080,0.21431,86337.0,86328.0,8.696e-05]
[1764634842285,0.36441229,86337.0,86328.0,8.696e-05]
[1764634842584,0.011586,86317.0,86314.0,0.08316002]
[1764634842778,0.0115864,86314.0,86310.0,0.27722]
[1764634843078,0.1715864,86314.0,86311.0,0.2122]
[1764634843483,0.0115866,86312.0,86311.0,0.2122]
[1764634843680,0.1715866,86312.0,86311.0,0.2122]
[1764634844183,0.1715866,86312.0,86310.0,0.06502]
[1764634844370,0.0115876,86305.0,86304.0,0.27722]
[1764634844571,1.0512676,86305.0,86304.0,0.27722]
[1764634844780,0.0115884,86299.0,86298.0,0.06502]
[1764634845087,0.0115884,86299.0,86294.0,0.00685263]
[1764634845088,0.0115889,86295.0,86294.0,0.00685263]
[1764634845290,0.1515889,86295.0,86294.0,0.00685263]
[1764634846188,0.0115897,86289.0,86288.0,0.00578456]
[1764634846380,1.05165662,86289.0,86288.0,0.00578456]
[1764634846879,0.51249662,86289.0,86288.0,0.28300456]
[1764634847081,1.05165662,86289.0,86288.0,0.28300456]
[1764634848280,1.05165662,86289.0,86288.0,0.00578456]
[1764634848475,1.05165662,86289.0,86288.0,0.28300456]
[1764634848681,0.51249662,86289.0,86288.0,0.28300456]
[1764634848879,1.02413662,86289.0,86288.0,0.28300456]
[1764634849079,0.50090692,86289.0,86288.0,0.28300456]
[1764634849279,0.14010692,86289.0,86288.0,0.28300456]
[1764634855788,0.50758763,86293.0,86288.0,0.28300456]
[1764634855986,0.64758763,86293.0,86288.0,0.28300456]
[1764634856386,0.0115893,86292.0,86288.0,0.28300456]
[1764634856586,0.3608,86289.0,86288.0,0.28300456]
[1764634856783,0.5108,86289.0,86288.0,0.17901456]
[1764634856997,0.51089386,86289.0,86288.0,0.28300456]
[1764634857191,0.51089386,86289.0,86282.0,0.0713735]
[1764634857192,1.30089386,86289.0,86282.0,0.0063535]
[1764634857399,0.0115915,86276.0,86275.0,0.00691133]
[1764634857598,1.06219734,86276.0,86275.0,0.21911133]
[1764634858299,1.06219734,86276.0,86275.0,0.00691133]
[1764634858891,1.06319734,86276.0,86275.0,0.21911133]
[1764634859293,1.06339734,86276.0,86275.0,0.21911133]
[1764634859492,1.06339734,86276.0,86275.0,0.00691133]
[1764634859694,1.06339734,86276.0,86275.0,0.11512133]
[1764634860195,1.06339734,86276.0,86275.0,0.00691133]
[1764634860900,0.0115923,86270.0,86269.0,2e-08]
[1764634861102,0.95869047,86270.0,86266.0,0.00589242]
[1764634861292,0.0115925,86268.0,86266.0,0.00589242]
[1764634861602,0.00012207,86267.0,86266.0,0.21809242]
[1764634861802,0.13012207,86267.0,86266.0,0.21809242]
[1764634862301,0.00012207,86267.0,86266.0,0.21809242]
[1764634862490,0.15012207,86267.0,86266.0,0.21809242]
[1764634862691,0.15212207,86267.0,86266.0,0.21809242]
[1764634863299,0.3608,86277.0,86276.0,0.25933]
[1764634863601,0.16,86277.0,86276.0,0.25933]
[1764634864388,0.29185,86277.0,86276.0,0.25933]
[1764634864587,0.42108,86277.0,86276.0,0.25933]
[1764634864996,0.42308,86277.0,86276.0,0.25933]
[1764634865489,0.29385,86277.0,86276.0,0.25933]
[1764634865894,0.0115915,86276.0,86272.0,0.07457]
[1764634866100,0.26108,86273.0,86272.0,0.13398]
[1764634866297,0.40108,86273.0,86272.0,0.3339]
[1764634866891,0.40108,86273.0,86272.0,0.25933]
[1764634867095,0.26108,86267.0,86266.0,0.00589242]
[1764634867289,0.33714,86264.0,86262.0,9.549e-05]
[1764634867489,0.95204,86264.0,86262.0,9.549e-05]
[1764634867993,0.97830165,86264.0,86262.0,9.549e-05]
[1764634868301,0.97830165,86264.0,86263.0,0.00692221]
[1764634868895,0.97830165,86264.0,86263.0,1e-08]
[1764634869400,0.98130165,86264.0,86263.0,1e-08]
[1764634869904,0.98230165,86264.0,86263.0,1e-08]
[1764634870288,0.1434438,86259.0,86257.0,0.00794327]
[1764634870500,0.80973545,86259.0,86257.0,0.00794327]
[1764634871394,0.80985626,86259.0,86257.0,0.00794327]
[1764634871990,0.81185626,86259.0,86257.0,0.00794327]
[1764634872303,0.81185626,86259.0,86258.0,0.271363]
[1764634872493,1.35297626,86259.0,86258.0,0.271363]
[1764634872692,0.55077626,86259.0,86258.0,0.271363]
[1764634872889,1.09193626,86259.0,86258.0,0.271363]
[1764634873399,0.36292081,86259.0,86258.0,0.671363]
[1764634873592,0.51292081,86259.0,86258.0,0.671363]
[1764634873805,0.36292081,86259.0,86258.0,0.671363]
[1764634874298,0.52292081,86259.0,86258.0,0.671363]
[1764634874487,0.52192081,86259.0,86258.0,0.671363]
[1764634874999,0.52092081,86259.0,86258.0,0.671363]
[1764634875302,0.52092081,86259.0,86258.0,0.272363]
[1764634875602,0.78200081,86259.0,86258.0,0.272363]
[1764634875802,0.52092081,86259.0,86258.0,0.272363]
[1764634876790,0.78200081,86259.0,86258.0,0.272363]
[1764634877604,0.52092081,86259.0,86258.0,0.272363]
[1764634877801,0.52092081,86259.0,86258.0,0.271363]
[1764634878192,0.53251461,86259.0,86258.0,0.271363]
[1764634879803,0.79359461,86259.0,86258.0,0.271363]
[1764634882604,0.52092081,86259.0,86258.0,0.271363]
[1764634883198,0.65277081,86259.0,86258.0,0.271363]
[1764634883799,0.52092081,86259.0,86258.0,0.271363]
[1764634884699,0.52092081,86259.0,86258.0,0.146013]
[1764634884700,1.34946892,86259.0,86258.0,0.146013]
[1764634884900,1.34946892,86259.0,86258.0,0.271363]
[1764634885105,1.08842892,86259.0,86258.0,0.271363]
[1764634885308,1.06220081,86259.0,86258.0,0.271363]
[1764634886114,1.0884412,86259.0,86258.0,0.271363]
[1764634887706,1.0884412,86259.0,86257.0,0.00794327]
[1764634887905,0.29891429,86258.0,86257.0,0.00794327]
[1764634888102,0.45891429,86258.0,86257.0,0.00794327]
[1764634890310,0.3027348,86251.0,86249.0,0.00806716]
[1764634890613,1.39116532,86251.0,86249.0,0.00806716]
[1764634890921,0.84988532,86251.0,86249.0,0.00806716]
[1764634891118,1.39132532,86251.0,86249.0,0.00806716]
[1764634891708,0.54715052,86251.0,86250.0,0.29257278]
[1764634891914,1.06243013,86251.0,86250.0,0.29257278]
[1764634892212,1.05243013,86251.0,86250.0,0.29257278]
[1764634892411,1.07868064,86251.0,86250.0,0.29257278]
[1764634892922,0.51091013,86251.0,86250.0,0.29257278]
[1764634893216,0.53716428,86251.0,86250.0,0.29257278]
[1764634893433,0.51091013,86251.0,86250.0,0.29257278]
[1764634895215,0.80003013,86251.0,86250.0,0.29257278]
[1764634895429,0.82629507,86251.0,86250.0,0.15589278]
[1764634895722,0.82629507,86251.0,86250.0,0.29846278]
[1764634896310,0.82629507,86251.0,86250.0,0.00774278]
[1764634897025,0.82629507,86251.0,86238.0,0.09795821]
[1764634897026,0.0115956,86245.0,86238.0,0.00669821]
[1764634897215,1.3630756,86245.0,86238.0,0.00669821]
[1764634897418,1.38934054,86245.0,86238.0,0.08992821]
[1764634898928,1.38934054,86245.0,86244.0,0.15423791]
[1764634899323,1.38934054,86245.0,86244.0,0.00608791]
[1764634899922,1.37774494,86245.0,86244.0,0.00608791]
[1764634901829,1.37774494,86245.0,86244.0,0.15423791]
[1764634902231,1.35148,86245.0,86244.0,0.15423791]
[1764634902435,1.3514,86245.0,86244.0,0.29680791]
[1764634902615,1.06228,86245.0,86244.0,0.29680791]
[1764634903436,1.06224,86245.0,86244.0,0.29680791]
[1764634906731,0.3608,86245.0,86244.0,0.29680791]
[1764634908238,0.64992,86245.0,86244.0,0.29680791]
[1764634908733,0.78992,86245.0,86244.0,0.29680791]
[1764634909538,0.64992,86245.0,86244.0,0.29680791]
[1764634909829,0.64992,86245.0,86244.0,0.00608791]
[1764634909830,1.33136,86245.0,86244.0,0.00608791]
[1764634910036,1.35820863,86245.0,86244.0,0.00608791]
[1764634911837,1.35820863,86245.0,86244.0,0.00708791]
[1764634912839,1.35820863,86245.0,86244.0,0.00608791]
[1764634913143,1.35820863,86245.0,86244.0,0.29680791]
[1764634913537,1.35820863,86245.0,86244.0,0.00608791]
[1764634914141,1.36980423,86245.0,86244.0,0.00608791]
[1764634914642,0.82836423,86245.0,86244.0,0.29680791]
[1764634914842,1.36968423,86245.0,86244.0,0.29680791]
[1764634916038,1.36968423,86245.0,86244.0,0.00608791]
[1764634918937,1.36968423,86245.0,86244.0,0.00708791]
[1764634919338,1.36968423,86245.0,86244.0,0.00608791]
[1764634919537,1.36968423,86245.0,86244.0,0.00708791]
[1764634920532,0.82836423,86245.0,86244.0,0.00708791]
[1764634920738,1.36976423,86245.0,86244.0,0.29780791]
[1764634920939,1.36976423,86245.0,86244.0,0.00608791]
[1764634921126,1.37076423,86245.0,86244.0,0.00608791]
[1764634921542,1.36976423,86245.0,86244.0,0.00608791]
[1764634921744,1.37076423,86245.0,86244.0,0.00608791]
[1764634922241,0.54024423,86245.0,86244.0,0.29680791]
[1764634922432,1.08160423,86245.0,86244.0,0.29680791]
[1764634924040,1.08160423,86245.0,86244.0,0.15423791]
[1764634924242,1.08160423,86245.0,86244.0,0.00608791]
[1764634924742,1.08060423,86245.0,86244.0,0.00608791]
[1764634925334,1.08160423,86245.0,86244.0,0.00608791]
[1764634927236,1.20509863,86245.0,86244.0,0.26254791]
[1764634927950,1.17825,86245.0,86244.0,0.26254791]
[1764634928338,1.20505331,86245.0,86244.0,0.26254791]
[1764634928535,1.20405331,86245.0,86244.0,0.26254791]
[1764634930135,0.52760331,86245.0,86244.0,0.26254791]
[1764634930543,0.52760331,86245.0,86244.0,0.25646]
[1764634930743,0.5008,86245.0,86244.0,0.25646]
[1764634933551,0.5008,86245.0,86244.0,0.25846]
[1764634934452,0.5008,86245.0,86244.0,0.25646]
[1764634934654,0.5008,86245.0,86244.0,0.25846]
[1764634935046,0.5008,86245.0,86244.0,0.25646]
[1764634935244,1.67445,86245.0,86244.0,0.002]
[1764634935448,1.70113218,86245.0,86244.0,0.002]
[1764634935647,1.15997218,86245.0,86244.0,0.25846]
[1764634935843,0.63593,86245.0,86244.0,0.25846]
[1764634936045,0.77249,86245.0,86244.0,0.25846]
[1764634937357,0.77249,86245.0,86244.0,0.25746]
[1764634937749,0.77249,86245.0,86244.0,0.25646]
[1764634937949,0.77249,86245.0,86244.0,0.25746]
[1764634938344,0.77249,86245.0,86244.0,0.25646]
[1764634940057,0.77249,86245.0,86244.0,0.25746]
[1764634940557,0.77249,86245.0,86244.0,0.25646]
[1764634942362,0.77249,86245.0,86244.0,0.12585]
[1764634942754,0.27169,86241.0,86240.0,0.12585]
[1764634943063,0.41169,86241.0,86240.0,0.12585]
[1764634943459,0.4232862,86241.0,86240.0,0.33275]
[1764634944656,0.14,86241.0,86240.0,0.33275]
[1764634946066,0.7216,86245.0,86240.0,0.33275]
[1764634946067,0.3608,86245.0,86244.0,0.25646]
[1764634946256,0.63249,86245.0,86244.0,0.25646]
[1764634946762,0.3608,86245.0,86244.0,0.25646]
[1764634947357,0.3608,86245.0,86244.0,0.25746]